fUST/lending_fUST_20240802
["ID","MTS","AMOUNT","RATE_DAILY","PERIOD"]
[333833418,1722538244925,-500.0,0.00013972,2]
[333833420,1722538244936,-500.0,0.00013972,2]
[333833422,1722538244946,-500.0,0.00013972,2]
[333833424,1722538244955,-989.05,0.00013972,2]
[333833426,1722538244964,-500.0,0.00013972,2]
[333833428,1722538244974,-500.0,0.00013972,2]
[333833430,1722538244984,-500.0,0.00013972,2]
[333833432,1722538244995,-500.0,0.00013972,2]
[333833434,1722538245004,-500.0,0.00013972,2]
[333833436,1722538245016,-630.42618905,0.00013972,2]
[333833438,1722538245026,-500.0,0.00013972,2]
[333833450,1722538245123,-500.0,0.00013972,2]
[333833452,1722538245133,-500.0,0.00013972,2]
[333833454,1722538245143,-500.0,0.00013972,2]
[333833456,1722538245153,-500.0,0.00013972,2]
[333833458,1722538245164,-161.95589257,0.00013972,2]
[333833460,1722538245174,-657.35,0.00013972,2]
[333833462,1722538245183,-500.0,0.00013972,2]
[333833464,1722538245194,-500.0,0.00013972,2]
[333833466,1722538245203,-500.0,0.00013972,2]
[333833468,1722538245213,-500.0,0.00013972,2]
[333833470,1722538245223,-500.0,0.00013972,2]
[333833471,1722538245233,-500.0,0.00013972,2]
[333833474,1722538245247,-500.0,0.00013972,2]
[333833476,1722538245257,-500.0,0.00013972,2]
[333833477,1722538245267,-500.0,0.00013972,2]
[333833479,1722538245278,-500.0,0.00013972,2]
[333833481,1722538245287,-500.0,0.00013972,2]
[333833483,1722538245297,-500.0,0.00013972,2]
[333833485,1722538245307,-1000.65,0.00013972,2]
[333833487,1722538245319,-500.0,0.00013972,2]
[333833489,1722538245329,-500.0,0.00013972,2]
[333833491,1722538245339,-500.0,0.00013972,2]
[333833493,1722538245348,-595.77622603,0.00013972,2]
[333833495,1722538245359,-516.08,0.00013972,2]
[333833498,1722538245368,-500.0,0.00013972,2]
[333833499,1722538245378,-500.0,0.00013972,2]
[333833501,1722538245387,-522.41,0.00013972,2]
[333833504,1722538245398,-500.0,0.00013972,2]
[333833506,1722538245409,-500.0,0.00013972,2]
[333833508,1722538245418,-1000.0,0.00014,14]
[333833510,1722538245428,-150.112233,0.00014,2]
[333833512,1722538245440,-1292.18733639,0.000141,2]
[333833513,1722538245449,-2000.0,0.00014146,2]
[333833515,1722538245458,-150.112233,0.000142,2]
[333833517,1722538245467,-500.0,0.00014235,2]
[333833519,1722538245477,-500.0,0.00014246,2]
[333833521,1722538245486,-500.0,0.00014246,2]
[333833523,1722538245496,-624.41,0.00014246,2]
[333833525,1722538245506,-500.0,0.00014246,2]
[333833527,1722538245516,-500.0,0.00014246,2]
[333833529,1722538245526,-539.0115133,0.00014246,2]
[333833532,1722538245537,-500.0,0.00014246,2]
[333833533,1722538245547,-500.0,0.00014246,2]
[333833536,1722538245557,-500.0,0.00014246,2]
[333833537,1722538245566,-611.99,0.00014246,2]
[333833540,1722538245576,-500.0,0.00014246,2]
[333833542,1722538245587,-500.0,0.00014246,2]
[333833544,1722538245597,-500.0,0.00014246,2]
[333833546,1722538245607,-1142.93,0.00014246,2]
[333833548,1722538245616,-1442.04,0.00014246,2]
[333833550,1722538245627,-500.0,0.00014246,2]
[333833552,1722538245638,-500.0,0.00014246,2]
[333833554,1722538245649,-500.0,0.00014246,2]
[333833556,1722538245658,-500.0,0.00014246,2]
[333833558,1722538245668,-500.0,0.00014246,2]
[333833560,1722538245678,-500.0,0.00014246,2]
[333833562,1722538245689,-989.05,0.00014246,2]
[333833564,1722538245698,-500.0,0.00014246,2]
[333833566,1722538245708,-171.18434318,0.00014246,2]
[333833568,1722538245719,-500.0,0.00014246,2]
[333833570,1722538245729,-500.0,0.00014246,2]
[333833572,1722538245738,-500.0,0.00014246,2]
[333833574,1722538245748,-500.0,0.00014246,2]
[333833576,1722538245757,-401.88401895,0.00014246,2]
[333833578,1722538245767,-657.35,0.00014246,2]
[333833580,1722538245777,-500.0,0.00014246,2]
[333833582,1722538245787,-510.98180364,0.00014246,2]
[333833584,1722538245798,-500.0,0.00014246,2]
[333833586,1722538245808,-500.0,0.00014246,2]
[333833588,1722538245818,-500.0,0.00014246,2]
[333833590,1722538245829,-500.0,0.00014246,2]
[333833592,1722538245838,-500.0,0.00014246,2]
[333833595,1722538245850,-1000.65,0.00014246,2]
[333833597,1722538245860,-500.0,0.00014246,2]
[333833599,1722538245870,-500.0,0.00014246,2]
[333833601,1722538245881,-500.0,0.00014246,2]
[333833603,1722538245891,-516.08,0.00014246,2]
[333833605,1722538245901,-500.0,0.00014246,2]
[333833607,1722538245911,-500.0,0.00014246,2]
[333833609,1722538245921,-522.41,0.00014246,2]
[333833611,1722538245931,-575.794458,0.00014247,2]
[333833613,1722538245941,-150.112233,0.000145,2]
[333833615,1722538245950,-3847.21415233,0.0001451,2]
[333833617,1722538245960,-506.3,0.00014518,2]
[333833619,1722538245970,-500.0,0.00014518,2]
[333833621,1722538245981,-500.0,0.00014519,2]
[333833623,1722538245990,-272.90490133,0.0001452,2]
[333833625,1722538245999,-500.0,0.0001452,2]
[333833627,1722538246009,-462.08155614,0.0001452,2]
[333833629,1722538246020,-500.0,0.0001452,2]
[333833631,1722538246029,-500.0,0.0001452,2]
[333833633,1722538246039,-500.0,0.0001452,2]
[333833635,1722538246049,-611.99,0.0001452,2]
[333833637,1722538246059,-500.0,0.0001452,2]
[333833639,1722538246068,-500.0,0.0001452,2]
[333833641,1722538246078,-1142.93,0.0001452,2]
[333833643,1722538246087,-1442.04,0.0001452,2]
[333833645,1722538246097,-500.0,0.0001452,2]
[333833649,1722538246106,-500.0,0.0001452,2]
[333833652,1722538246116,-500.0,0.0001452,2]
[333833654,1722538246125,-500.0,0.0001452,2]
[333833657,1722538246134,-500.0,0.0001452,2]
[333833660,1722538246144,-989.05,0.0001452,2]
[333833662,1722538246154,-500.0,0.0001452,2]
[333833664,1722538246164,-500.0,0.0001452,2]
[333833666,1722538246174,-500.0,0.0001452,2]
[333833668,1722538246185,-500.0,0.0001452,2]
[333833671,1722538246194,-657.35,0.0001452,2]
[333833673,1722538246204,-500.0,0.0001452,2]
[333833675,1722538246214,-500.0,0.0001452,2]
[333833677,1722538246224,-500.0,0.0001452,2]
[333833679,1722538246236,-500.0,0.0001452,2]
[333833681,1722538246247,-500.0,0.0001452,2]
[333833682,1722538246258,-1000.65,0.0001452,2]
[333833684,1722538246267,-500.0,0.0001452,2]
[333833687,1722538246277,-500.0,0.0001452,2]
[333833689,1722538246288,-500.0,0.0001452,2]
[333833691,1722538246299,-516.08,0.0001452,2]
[333833693,1722538246308,-549.51335053,0.0001452,2]
[333833695,1722538246320,-500.0,0.0001452,2]
[333833697,1722538246330,-522.41,0.0001452,2]
[333833699,1722538246340,-1292.18733639,0.00014603,2]
[333833701,1722538246350,-3847.21415233,0.00014684,2]
[333833703,1722538246360,-1091.36515182,0.0001469,2]
[333833705,1722538246370,-500.0,0.00014693,2]
[333833707,1722538246381,-40720.31632482,0.00014694,2]
[333833709,1722538246391,-367.7699373,0.00014718,2]
[333833711,1722538246401,-5311.63056584,0.00014745,2]
[333833713,1722538246411,-3847.21415233,0.00014784,2]
[333833715,1722538246420,-190.18405344,0.00014792,2]
[333833717,1722538246430,-589.42978081,0.00014792,2]
[333833719,1722538246442,-500.0,0.00014792,2]
[333833721,1722538246451,-155.72288442,0.00014792,2]
[333833723,1722538246461,-500.0,0.00014792,2]
[333833725,1722538246471,-500.0,0.00014792,2]
[333833727,1722538246480,-500.0,0.00014792,2]
[333833729,1722538246491,-500.0,0.00014792,2]
[333833731,1722538246501,-500.0,0.00014792,2]
[333833733,1722538246510,-500.0,0.00014792,2]
[333833735,1722538246519,-500.0,0.00014792,2]
[333833737,1722538246529,-500.0,0.00014792,2]
[333833739,1722538246539,-500.0,0.00014792,2]
[333833741,1722538246548,-500.0,0.00014792,2]
[333833743,1722538246558,-500.0,0.00014792,2]
[333833745,1722538246568,-207.84393302,0.00014792,2]
[333833747,1722538246578,-500.0,0.00014793,2]
[333833749,1722538246589,-1297.360479,0.00014793,2]
[333833751,1722538246599,-500.0,0.00014793,2]
[333833753,1722538246609,-707.666869,0.00014793,2]
[333833755,1722538246619,-1297.360479,0.00014793,2]
[333833757,1722538246629,-707.666869,0.00014793,2]
[333833759,1722538246639,-151.0,0.00014793,2]
[333833761,1722538246649,-151.0,0.00014793,2]
[333833763,1722538246660,-208.41106356,0.00014794,2]
[333833765,1722538246669,-500.0,0.00014794,2]
[333833767,1722538246679,-151.0,0.00014794,2]
[333833769,1722538246690,-151.0,0.00014794,2]
[333833771,1722538246699,-500.0,0.00014794,2]
[333833773,1722538246709,-151.0,0.00014794,2]
[333833775,1722538246720,-500.0,0.00014794,2]
[333833777,1722538246731,-220.496549,0.00014794,2]
[333833779,1722538246740,-220.496549,0.00014794,2]
[333833781,1722538246750,-500.0,0.00014794,2]
[333833783,1722538246760,-151.0,0.00014794,2]
[333833785,1722538246770,-567.629137,0.00014794,2]
[333833787,1722538246783,-567.629137,0.00014794,2]
[333833789,1722538246792,-611.99,0.00014794,2]
[333833791,1722538246802,-395.735268,0.00014794,2]
[333833793,1722538246813,-395.735268,0.00014794,2]
[333833795,1722538246824,-500.0,0.00014794,2]
[333833796,1722538246833,-557.170865,0.00014794,2]
[333833798,1722538246843,-557.170865,0.00014794,2]
[333833800,1722538246853,-500.0,0.00014794,2]
[333833802,1722538246862,-1142.93,0.00014794,2]
[333833805,1722538246873,-1442.04,0.00014794,2]
[333833807,1722538246883,-1060.787328,0.00014794,2]
[333833809,1722538246892,-1060.787328,0.00014794,2]
[333833811,1722538246902,-171.586568,0.00014794,2]
[333833813,1722538246913,-500.0,0.00014794,2]
[333833815,1722538246923,-290.55644,0.00014794,2]
[333833817,1722538246934,-290.55644,0.00014794,2]
[333833819,1722538246944,-151.0,0.00014794,2]
[333833821,1722538246953,-500.0,0.00014794,2]
[333833822,1722538246962,-500.0,0.00014794,2]
[333833824,1722538246971,-151.0,0.00014794,2]
[333833826,1722538246980,-151.0,0.00014794,2]
[333833828,1722538246990,-500.0,0.00014794,2]
[333833830,1722538247000,-564.135391,0.00014794,2]
[333833832,1722538247010,-500.0,0.00014794,2]
[333833834,1722538247019,-745.71652964,0.00014794,2]
[333833896,1722538247365,-500.0,0.00014246,2]
[333833898,1722538247375,-500.0,0.0001452,2]
[333833900,1722538247385,-115.24223283,0.00014794,2]
[333833933,1722538247713,-233.97711361,0.0001396,2]
[333833941,1722538247775,-54.43421944,0.0001396,2]
[333833943,1722538247787,-28.04468595,0.0001396,2]
[333833945,1722538247796,-128.09123753,0.00014794,2]
[333833947,1722538247807,-564.135391,0.00014794,2]
[333833949,1722538247816,-233.33935,0.00014794,2]
[333833951,1722538247827,-510.240272,0.00014794,2]
[333833953,1722538247836,-500.0,0.00014794,2]
[333833955,1722538247846,-233.33935,0.00014794,2]
[333833957,1722538247856,-510.240272,0.00014794,2]
[333833959,1722538247866,-323.38748585,0.00014794,2]
[333833961,1722538247875,-500.0,0.00014794,2]
[333833963,1722538247885,-151.0,0.00014794,2]
[333833965,1722538247894,-500.0,0.00014794,2]
[333833967,1722538247904,-450.18195594,0.00014794,2]
[333834167,1722538252699,268.14,0.00010959,2]
[333834190,1722538263254,283.15,0.00010959,2]
[333834191,1722538270621,161.7352196,0.00010959,2]
[333834192,1722538273751,178.68569882,0.00010959,2]
[333834193,1722538273776,57.27430118,0.00010959,2]
[333834194,1722538275595,404.58378299,0.00010959,2]
[333834195,1722538284289,28.14191583,0.00010959,2]
[333834196,1722538284313,168.48808417,0.00010959,2]
[333834197,1722538294804,163.86,0.00010959,2]
[333834198,1722538305364,819.34,0.00010959,2]
[333834204,1722538440504,222.85018511,9.999e-05,2]
[333834205,1722538467284,446.81076494,9.999e-05,2]
[333834207,1722538502831,930.6756067,9.999e-05,7]
[333834209,1722538517826,930.6756067,9.999e-05,7]
[333834216,1722538642838,517.04200372,9.999e-05,7]
[333834226,1722538742832,269.37888394,9.999e-05,7]
[333834227,1722538840852,269.37888394,9.999e-05,7]
[333834228,1722538947369,269.37888394,9.999e-05,7]
[333834231,1722539033364,269.37888394,9.999e-05,7]
[333834232,1722539100221,413.73386929,9.999e-05,2]
[333834233,1722539107014,1163.75358293,9.999e-05,2]
[333834234,1722539137847,269.37888394,9.999e-05,7]
[333834235,1722539139144,-204.61,0.00010959,2]
[333834236,1722539139166,-390.19,0.00010959,2]
[333834237,1722539139189,-325.15,0.00010959,2]
[333834238,1722539139213,-162.036264,0.00012072,2]
[333834239,1722539139236,-162.036264,0.00012107,2]
[333834240,1722539139256,-300.0,0.00012119,2]
[333834241,1722539139277,-92.82234683,0.00012119,2]
[333834245,1722539167569,269.37888394,9.999e-05,7]
[333834247,1722539226116,-270.96,0.00010959,2]
[333834248,1722539226138,-225.8,0.00010959,2]
[333834249,1722539226161,-188.17,0.00010959,2]
[333834250,1722539226183,-156.81,0.00010959,2]
[333834251,1722539226207,-167.14065588,0.00010959,2]
[333834252,1722539237109,-616.91934412,0.00010959,2]
[333834253,1722539237134,-300.0,0.00012119,2]
[333834254,1722539237158,-96.24713274,0.0001212,2]
[333834255,1722539238136,-1532.84812642,0.0001212,2]
[333834256,1722539238159,-5798.38617212,0.0001212,2]
[333834257,1722539282397,269.37888394,9.999e-05,7]
[333834258,1722539297379,269.37888394,9.999e-05,7]
[333834266,1722539352108,-77.61377442,0.0001212,2]
[333834267,1722539352132,-162.036264,0.00012142,2]
[333834268,1722539352155,-162.036264,0.00012177,2]
[333834269,1722539352177,-162.036264,0.00012212,2]
[333834270,1722539352199,-162.036264,0.00012247,2]
[333834271,1722539352222,-162.036264,0.00012282,2]
[333834272,1722539352245,-162.036264,0.00012317,2]
[333834273,1722539352268,-162.036264,0.00012352,2]
[333834274,1722539352289,-162.036264,0.00012387,2]
[333834275,1722539352312,-162.036264,0.00012421,2]
[333834276,1722539352337,-162.036264,0.00012456,2]
[333834277,1722539352360,-162.036264,0.00012491,2]
[333834278,1722539352384,-162.036264,0.00012526,2]
[333834279,1722539352408,-162.036264,0.00012561,2]
[333834280,1722539352921,166.666666,0.00011506,2]
[333834281,1722539353120,166.666666,0.0001182,2]
[333834282,1722539353332,166.666666,0.00012133,2]
[333834283,1722539353569,166.666666,0.00012447,2]
[333834284,1722539355483,244.78359005,9.999e-05,2]
[333834285,1722539358107,-162.036264,0.00012596,2]
[333834286,1722539358131,-162.036264,0.00012631,2]
[333834287,1722539358153,-162.036264,0.00012666,2]
[333834288,1722539358177,-162.036264,0.00012701,2]
[333834289,1722539358201,-57.97392983,0.00012761,2]
[333834290,1722539366135,52.31656153,9.999e-05,2]
[333834291,1722539366158,107.80668106,9.999e-05,2]
[333834292,1722539370678,154.72922386,9.999e-05,2]
[333834293,1722539374111,-108.69273617,0.00012761,2]
[333834294,1722539374135,-169.79972,0.00012986,2]
[333834295,1722539374158,-1000.0,0.00013,6]
[333834296,1722539374180,-300.0,0.00013,2]
[333834297,1722539374203,-300.0,0.00013,2]
[333834298,1722539374226,-166.666666,0.00013074,2]
[333834300,1722539387583,1181.75343563,0.00012695,2]
[333834301,1722539397782,1923.57065045,0.0001212,2]
[333834302,1722539397941,209.81495165,9.999e-05,2]
[333834303,1722539408703,4.12658125,0.00010959,2]
[333834304,1722539412410,269.37888394,9.999e-05,7]
[333834363,1722539433196,-721.54341875,0.00010959,2]
[333834364,1722539433206,-300.0,0.00012119,2]
[333834365,1722539433216,-1814.16010767,0.0001212,2]
[333834390,1722539438837,-330.69481219,0.0001212,2]
[333834391,1722539438849,-35320.73090735,0.0001212,2]
[333834392,1722539438861,-10496.09783505,0.0001212,2]
[333834393,1722539438871,-244.78359005,0.0001212,2]
[333834394,1722539438881,-10899.56475717,0.00012695,2]
[333834395,1722539438890,-420.0,0.00013331,2]
[333834396,1722539438900,-2344.80563166,0.00013597,2]
[333834397,1722539438909,-2316.8346415,0.00013598,2]
[333834398,1722539438919,-5858.47882885,0.00013688,2]
[333834402,1722539439722,-323.81791502,0.00013688,2]
[333834439,1722539440861,-39009.82488413,0.00013688,2]
[333834441,1722539440870,-500.0,0.00013697,2]
[333834443,1722539440880,-500.0,0.00013697,2]
[333834445,1722539440890,-500.0,0.00013698,2]
[333834447,1722539440905,-500.0,0.00013698,2]
[333834449,1722539440918,-500.0,0.00013698,2]
[333834451,1722539440928,-500.0,0.00013698,2]
[333834452,1722539440937,-500.0,0.00013698,2]
[333834454,1722539440947,-500.0,0.00013698,2]
[333834456,1722539440961,-500.0,0.00013698,2]
[333834458,1722539440971,-500.0,0.00013698,2]
[333834460,1722539440981,-500.0,0.00013698,2]
[333834462,1722539440991,-500.0,0.00013698,2]
[333834465,1722539441003,-320.21450617,0.00013698,2]
[333834467,1722539441012,-541.77194434,0.00013698,2]
[333834469,1722539441022,-500.0,0.00013698,2]
[333834471,1722539441031,-500.0,0.00013698,2]
[333834473,1722539441041,-500.0,0.00013698,2]
[333834475,1722539441051,-500.0,0.00013698,2]
[333834477,1722539441060,-444.67572387,0.00013698,2]
[333834479,1722539441070,-500.0,0.00013698,2]
[333834481,1722539441080,-500.0,0.00013698,2]
[333834483,1722539441090,-500.0,0.00013698,2]
[333834485,1722539441101,-500.0,0.00013698,2]
[333834487,1722539441111,-500.0,0.00013698,2]
[333834489,1722539441121,-500.0,0.00013698,2]
[333834490,1722539441130,-500.0,0.00013698,2]
[333834492,1722539441141,-500.0,0.00013698,2]
[333834494,1722539441150,-500.0,0.00013698,2]
[333834496,1722539441159,-361.88733057,0.00013698,2]
[333834498,1722539441169,-500.0,0.00013698,2]
[333834500,1722539441179,-500.0,0.00013698,2]
[333834502,1722539441190,-503.62001656,0.00013698,2]
[333834504,1722539441199,-500.0,0.00013698,2]
[333834506,1722539441209,-500.0,0.00013698,2]
[333834508,1722539441219,-500.0,0.00013698,2]
[333834510,1722539441229,-421.84885917,0.00013698,2]
[333834511,1722539441240,-500.0,0.00013698,2]
[333834513,1722539441250,-500.0,0.00013698,2]
[333834515,1722539441259,-500.0,0.00013698,2]
[333834517,1722539441271,-500.0,0.00013698,2]
[333834519,1722539441280,-500.0,0.00013698,2]
[333834521,1722539441290,-500.0,0.00013698,2]
[333834523,1722539441300,-500.0,0.00013698,2]
[333834525,1722539441310,-500.0,0.00013698,2]
[333834527,1722539441319,-500.0,0.00013698,2]
[333834529,1722539441329,-246.51782568,0.00013698,2]
[333834531,1722539441339,-500.0,0.00013698,2]
[333834533,1722539441349,-500.0,0.00013698,2]
[333834535,1722539441358,-500.0,0.00013698,2]
[333834537,1722539441368,-500.0,0.00013698,2]
[333834539,1722539441377,-500.0,0.00013698,2]
[333834541,1722539441387,-500.0,0.00013698,2]
[333834543,1722539441398,-500.0,0.00013698,2]
[333834545,1722539441407,-506.08476174,0.00013698,2]
[333834547,1722539441417,-500.0,0.00013698,2]
[333834549,1722539441426,-500.0,0.00013698,2]
[333834551,1722539441436,-500.0,0.00013698,2]
[333834553,1722539441445,-500.0,0.00013698,2]
[333834555,1722539441454,-500.0,0.00013698,2]
[333834556,1722539441464,-500.0,0.00013698,2]
[333834559,1722539441475,-512.27579471,0.00013698,2]
[333834561,1722539441486,-500.0,0.00013698,2]
[333834563,1722539441497,-500.0,0.00013698,2]
[333834565,1722539441507,-500.0,0.00013698,2]
[333834567,1722539441517,-500.0,0.00013698,2]
[333834569,1722539441528,-500.0,0.00013698,2]
[333834571,1722539441537,-500.0,0.00013698,2]
[333834573,1722539441548,-500.0,0.00013698,2]
[333834575,1722539441558,-500.0,0.00013698,2]
[333834577,1722539441567,-500.0,0.00013698,2]
[333834579,1722539441577,-500.0,0.00013698,2]
[333834581,1722539441587,-500.0,0.00013698,2]
[333834583,1722539441597,-505.66609461,0.00013698,2]
[333834585,1722539441610,-205.13974313,0.00013698,2]
[333834587,1722539441625,-150.67306091,0.00013698,2]
[333834589,1722539441634,-500.0,0.00013698,2]
[333834590,1722539441647,-500.0,0.00013698,2]
[333834592,1722539441657,-500.0,0.00013698,2]
[333834594,1722539441667,-500.0,0.00013698,2]
[333834596,1722539441677,-500.0,0.00013698,2]
[333834598,1722539441687,-500.0,0.00013698,2]
[333834600,1722539441700,-500.0,0.00013698,2]
[333834602,1722539441710,-500.0,0.00013698,2]
[333834604,1722539441721,-502.62724967,0.00013698,2]
[333834606,1722539441732,-503.20810677,0.00013698,2]
[333834608,1722539441742,-500.0,0.00013698,2]
[333834610,1722539441753,-500.0,0.00013698,2]
[333834612,1722539441762,-500.0,0.00013698,2]
[333834614,1722539441771,-500.0,0.00013698,2]
[333834616,1722539441782,-500.0,0.00013698,2]
[333834618,1722539441792,-500.0,0.00013698,2]
[333834620,1722539441802,-500.0,0.00013698,2]
[333834621,1722539441811,-500.0,0.00013698,2]
[333834623,1722539441821,-500.0,0.00013698,2]
[333834625,1722539441830,-500.0,0.00013698,2]
[333834626,1722539441840,-500.0,0.00013698,2]
[333834627,1722539441850,-606.436354,0.00013698,2]
[333834628,1722539441860,-500.0,0.00013698,2]
[333834629,1722539441869,-500.0,0.00013698,2]
[333834630,1722539441879,-500.0,0.00013698,2]
[333834631,1722539441888,-500.0,0.00013698,2]
[333834632,1722539441898,-500.0,0.00013698,2]
[333834633,1722539441907,-500.0,0.00013698,2]
[333834634,1722539441917,-502.8165754,0.00013698,2]
[333834635,1722539441926,-500.0,0.00013698,2]
[333834636,1722539441936,-500.0,0.00013698,2]
[333834637,1722539441945,-500.0,0.00013698,2]
[333834638,1722539441954,-500.0,0.00013698,2]
[333834639,1722539441963,-500.0,0.00013698,2]
[333834640,1722539441972,-500.0,0.00013698,2]
[333834641,1722539441981,-500.0,0.00013698,2]
[333834642,1722539441990,-500.0,0.00013698,2]
[333834643,1722539442000,-500.0,0.00013698,2]
[333834644,1722539442010,-500.0,0.00013698,2]
[333834645,1722539442022,-500.0,0.00013698,2]
[333834646,1722539442032,-500.0,0.00013698,2]
[333834647,1722539442043,-500.0,0.00013698,2]
[333834648,1722539442053,-500.0,0.00013698,2]
[333834649,1722539442062,-500.0,0.00013698,2]
[333834650,1722539442072,-590.66859835,0.00013698,2]
[333834651,1722539442081,-500.0,0.00013698,2]
[333834652,1722539442092,-500.0,0.00013698,2]
[333834653,1722539442102,-380.45781814,0.00013698,2]
[333834654,1722539442112,-500.0,0.00013698,2]
[333834655,1722539442121,-320.51396772,0.00013698,2]
[333834656,1722539442132,-500.0,0.00013698,2]
[333834657,1722539442143,-500.0,0.00013698,2]
[333834658,1722539442154,-500.0,0.00013698,2]
[333834659,1722539442165,-500.0,0.00013698,2]
[333834660,1722539442174,-508.83107723,0.00013698,2]
[333834661,1722539442184,-500.0,0.00013698,2]
[333834662,1722539442195,-500.0,0.00013698,2]
[333834663,1722539442206,-500.0,0.00013698,2]
[333834664,1722539442215,-500.0,0.00013698,2]
[333834665,1722539442227,-500.0,0.00013698,2]
[333834666,1722539442238,-500.0,0.00013698,2]
[333834667,1722539442249,-500.0,0.00013698,2]
[333834668,1722539442260,-500.0,0.00013698,2]
[333834669,1722539442270,-482.0194119,0.00013698,2]
[333834670,1722539442279,-500.0,0.00013698,2]
[333834671,1722539442289,-500.0,0.00013698,2]
[333834672,1722539442299,-500.0,0.00013698,2]
[333834673,1722539442308,-500.0,0.00013698,2]
[333834674,1722539442318,-500.0,0.00013698,2]
[333834675,1722539442328,-500.0,0.00013698,2]
[333834676,1722539442339,-500.0,0.00013698,2]
[333834677,1722539442349,-500.0,0.00013698,2]
[333834678,1722539442358,-500.0,0.00013698,2]
[333834679,1722539442368,-500.0,0.00013698,2]
[333834680,1722539442377,-500.0,0.00013698,2]
[333834681,1722539442386,-538.38892391,0.00013698,2]
[333834682,1722539442396,-178.49181071,0.00013698,2]
[333834683,1722539442405,-405.92078417,0.00013698,2]
[333834684,1722539442416,-500.0,0.00013698,2]
[333834685,1722539442426,-500.0,0.00013698,2]
[333834686,1722539442436,-500.0,0.00013698,2]
[333834687,1722539442446,-500.0,0.00013698,2]
[333834688,1722539442457,-500.0,0.00013698,2]
[333834689,1722539442466,-500.0,0.00013698,2]
[333834690,1722539442476,-500.0,0.00013698,2]
[333834691,1722539442486,-500.0,0.00013698,2]
[333834692,1722539442496,-500.0,0.00013698,2]
[333834693,1722539442505,-651.45,0.00013698,2]
[333834694,1722539442515,-500.0,0.00013698,2]
[333834695,1722539442525,-500.0,0.00013698,2]
[333834696,1722539442537,-500.0,0.00013698,2]
[333834697,1722539442547,-1234.71,0.00013698,2]
[333834698,1722539442557,-500.0,0.00013698,2]
[333834699,1722539442567,-500.0,0.00013698,2]
[333834700,1722539442578,-500.0,0.00013698,2]
[333834701,1722539442588,-500.0,0.00013698,2]
[333834702,1722539442600,-523.71,0.00013698,2]
[333834703,1722539442617,-500.0,0.00013698,2]
[333834704,1722539442626,-500.0,0.00013698,2]
[333834705,1722539442635,-500.0,0.00013698,2]
[333834706,1722539442645,-500.0,0.00013698,2]
[333834707,1722539442657,-500.0,0.00013698,2]
[333834708,1722539442666,-500.0,0.00013698,2]
[333834709,1722539442676,-500.0,0.00013698,2]
[333834710,1722539442687,-500.0,0.00013698,2]
[333834711,1722539442699,-1540.2,0.00013698,2]
[333834712,1722539442709,-500.0,0.00013698,2]
[333834713,1722539442719,-500.0,0.00013698,2]
[333834714,1722539442729,-500.0,0.00013698,2]
[333834715,1722539442739,-500.0,0.00013698,2]
[333834716,1722539442749,-500.0,0.00013698,2]
[333834717,1722539442758,-500.0,0.00013698,2]